[Event "44th Chess Olympiad Women 2022"]
[Site "Chennai"]
[Date "2022.08.05"]
[Round "7.46"]
[White "Roepke, Sofia"]
[Black "Hwass Zeineb"]
[Result "1-0"]
[WhiteElo "1869"]
[BlackElo "1386"]
[Annotator "NA RC"]
[PlyCount "125"]
[EventDate "2022.??.??"]
[TimeControl "60"]

1. e4 {[%emt 0:00:04]} c5 {[%emt 0:00:04]} 2. Nf3 {[%emt 0:00:04]} d6 {[%emt 0:
00:00]} 3. Bb5+ {[%emt 0:00:04]} Bd7 {[%emt 0:00:04]} 4. Bxd7+ {[%emt 0:00:04]}
Qxd7 {[%emt 0:00:03]} 5. O-O {[%emt 0:00:06]} Nc6 {[%emt 0:00:17]} 6. Qe2 {
[%emt 0:00:28]} Nf6 {[%emt 0:00:57]} 7. Rd1 {[%emt 0:00:22]} Qc7 {[%emt 0:00:
00]} 8. d4 {[%emt 0:04:25]} cxd4 {[%emt 0:01:17]} 9. Nxd4 {[%emt 0:00:20]} e6 {
[%emt 0:06:22]} 10. Nb5 {[%emt 0:08:52]} Qd7 {[%emt 0:02:28]} 11. e5 {[%emt 0:
00:00]} Nxe5 {[%emt 0:13:17]} 12. Bf4 {[%emt 0:01:00]} Qc6 {[%emt 0:04:24]} 13.
Bxe5 {[%emt 0:00:43]} dxe5 {[%emt 0:00:14]} 14. Qxe5 {[%emt 0:00:23]} Nd7 {
[%emt 0:06:17]} 15. Nc7+ {[%emt 0:34:52]} Ke7 {[%emt 0:01:05]} 16. Qc3 {
[%emt 0:01:14]} Qxc3 {[%emt 0:03:39]} 17. Nxc3 {[%emt 0:00:08]} Rc8 {[%emt 0:
00:00]} 18. N7b5 {[%emt 0:01:17]} a6 {[%emt 0:01:19]} 19. Nd6 {[%emt 0:00:33]}
Rc7 {[%emt 0:00:37]} 20. Rd2 {[%emt 0:02:00]} g6 {[%emt 0:12:25]} 21. Rad1 {
[%emt 0:07:26]} Nb6 {[%emt 0:00:00]} 22. Rd3 {[%emt 0:13:06]} Bg7 {[%emt 0:00:
00]} 23. Nce4 {[%emt 0:08:08]} Nc8 {[%emt 0:17:31]} 24. Nxc8+ {[%emt 0:00:45]}
Rhxc8 {[%emt 0:00:11]} 25. c3 {[%emt 0:00:09]} Be5 {[%emt 0:09:06]} 26. g3 {
[%emt 0:00:17]} b5 {[%emt 0:04:52]} 27. f4 {[%emt 0:00:37]} Bg7 {[%emt 0:00:11]
} 28. Nd6 {[%emt 0:01:43]} Rd8 {[%emt 0:00:47]} 29. Nf5+ {[%emt 0:00:26]} gxf5
{[%emt 0:01:34]} 30. Rxd8 {[%emt 0:00:05]} Ra7 {[%emt 0:05:57]} 31. Rg8 {
[%emt 0:00:43]} Bf8 {[%emt 0:01:40]} 32. h3 {[%emt 0:02:56]} Ra8 {[%emt 0:00:
00]} 33. g4 {[%emt 0:00:41]} fxg4 {[%emt 0:00:05]} 34. Rxg4 {[%emt 0:00:26]}
Kf6 {[%emt 0:01:38]} 35. Kg2 {[%emt 0:00:15]} Bc5 {[%emt 0:01:09]} 36. Kf3 {
[%emt 0:00:15]} Rb8 {[%emt 0:00:49]} 37. Rh4 {[%emt 0:00:58]} Rh8 {[%emt 0:00:
00]} 38. Rd7 {[%emt 0:00:13]} Kg7 {[%emt 0:01:16]} 39. Rh5 {[%emt 0:00:29]} Rc8
{[%emt 0:00:19]} 40. Rb7 {[%emt 0:01:33]} h6 {[%emt 0:00:43]} 41. Re5 {[%emt 0:
00:00]} Kf6 {[%emt 0:07:16]} 42. Rd7 {[%emt 0:00:00]} Be7 {[%emt 0:01:24]} 43.
Ra7 {[%emt 0:00:00]} Rc6 {[%emt 0:00:41]} 44. Re4 {[%emt 0:00:00]} Bf8 {
[%emt 0:04:05]} 45. Rd7 {[%emt 0:00:00]} Be7 {[%emt 0:03:45]} 46. Red4 {
[%emt 0:00:00]} Bc5 {[%emt 0:00:34]} 47. Rd1 {[%emt 0:00:00]} Be7 {[%emt 0:00:
00]} 48. Rb7 {[%emt 0:00:00]} Bd6 {[%emt 0:00:34]} 49. Rd4 {[%emt 0:00:00]} h5
{[%emt 0:01:32]} 50. a4 {[%emt 0:00:00]} bxa4 {[%emt 0:03:20]} 51. Rxa4 {
[%emt 0:00:00]} Bc7 {[%emt 0:00:57]} 52. Rd4 {[%emt 0:00:50]} Ke7 {[%emt 0:00:
00]} 53. Ra7 {[%emt 0:01:28]} a5 {[%emt 0:01:28]} 54. Ra8 {[%emt 0:00:41]} Bb6
{[%emt 0:00:10]} 55. Rd2 {[%emt 0:00:30]} Bc7 {[%emt 0:02:42]} 56. Rd1 {
[%emt 0:00:56]} Bb6 {[%emt 0:00:57]} 57. Rb8 {[%emt 0:00:15]} Bc7 {[%emt 0:00:
00]} 58. Rb5 {[%emt 0:00:19]} f5 {[%emt 0:00:13]} 59. Rb7 {[%emt 0:00:45]} Ke8
{[%emt 0:00:15]} 60. Rg1 {[%emt 0:02:27]} Rc4 {[%emt 0:02:36]} 61. Rg7 {
[%emt 0:00:33]} Rxf4+ {[%emt 0:00:39]} 62. Ke3 {[%emt 0:00:26]} Re4+ {[%emt 0:
00:00]} 63. Kd3 {[%emt 0:00:05]} 1-0

[Event "44th Chess Olympiad Women 2022"]
[Site "Chennai"]
[Date "2022.08.05"]
[Round "7.47"]
[White "Berezovsky, Fiorina"]
[Black "Thetsane Nteboheleng"]
[Result "1-0"]
[WhiteElo "1544"]
[BlackElo "1259"]
[Annotator "NA RC"]
[PlyCount "85"]
[EventDate "2022.??.??"]
[TimeControl "60"]

1. d4 {[%emt 0:00:06]} Nf6 {[%emt 0:00:06]} 2. c4 {[%emt 0:00:26]} g6 {[%emt 0:
00:00]} 3. Nc3 {[%emt 0:01:30]} Bg7 {[%emt 0:00:05]} 4. Nf3 {[%emt 0:01:40]}
O-O {[%emt 0:00:07]} 5. e4 {[%emt 0:05:57]} d6 {[%emt 0:00:12]} 6. Bd3 {
[%emt 0:01:57]} Nc6 {[%emt 0:00:32]} 7. d5 {[%emt 0:04:15]} Nb8 {[%emt 0:01:21]
} 8. O-O {[%emt 0:02:07]} Nbd7 {[%emt 0:06:57]} 9. h3 {[%emt 0:07:04]} Re8 {
[%emt 0:03:36]} 10. Be3 {[%emt 0:01:40]} Nb6 {[%emt 0:04:11]} 11. Qe2 {[%emt 0:
00:00]} Nh5 {[%emt 0:04:24]} 12. Rac1 {[%emt 0:02:07]} Bh8 {[%emt 0:00:12]} 13.
Bd4 {[%emt 0:05:08]} Ng7 {[%emt 0:00:36]} 14. Rfe1 {[%emt 0:09:16]} c6 {
[%emt 0:00:36]} 15. g4 {[%emt 0:05:33]} c5 {[%emt 0:00:28]} 16. Bxg7 {[%emt 0:
00:00]} Bxg7 {[%emt 0:00:09]} 17. e5 {[%emt 0:00:25]} Bd7 {[%emt 0:04:19]} 18.
e6 {[%emt 0:02:58]} fxe6 {[%emt 0:00:05]} 19. dxe6 {[%emt 0:00:26]} Bc8 {
[%emt 0:00:10]} 20. Ng5 {[%emt 0:02:03]} Rf8 {[%emt 0:00:25]} 21. Qe4 {[%emt 0:
00:00]} Bh6 {[%emt 0:01:19]} 22. Nxh7 {[%emt 0:02:11]} Qe8 {[%emt 0:07:16]} 23.
Nxf8 {[%emt 0:01:47]} Bxc1 {[%emt 0:04:35]} 24. Qxg6+ {[%emt 0:05:40]} Qxg6 {
[%emt 0:00:11]} 25. Nxg6 {[%emt 0:00:14]} Bxb2 {[%emt 0:00:06]} 26. Nxe7+ {
[%emt 0:00:36]} Kf8 {[%emt 0:00:18]} 27. Nxc8 {[%emt 0:01:24]} Nxc8 {[%emt 0:
00:00]} 28. Nd5 {[%emt 0:00:34]} Be5 {[%emt 0:00:32]} 29. e7+ {[%emt 0:02:33]}
Nxe7 {[%emt 0:01:19]} 30. Nxe7 {[%emt 0:00:08]} Kxe7 {[%emt 0:00:01]} 31. f4 {
[%emt 0:00:10]} Kf6 {[%emt 0:00:03]} 32. fxe5+ {[%emt 0:00:20]} dxe5 {[%emt 0:
00:00]} 33. h4 {[%emt 0:00:50]} Rd8 {[%emt 0:00:07]} 34. g5+ {[%emt 0:00:32]}
Kg7 {[%emt 0:02:08]} 35. Re3 {[%emt 0:00:32]} Rd4 {[%emt 0:00:29]} 36. g6 {
[%emt 0:02:14]} Rxh4 {[%emt 0:02:02]} 37. Rxe5 {[%emt 0:00:23]} Rd4 {[%emt 0:
00:00]} 38. Rd5 {[%emt 0:00:56]} Rg4+ {[%emt 0:00:50]} 39. Kf2 {[%emt 0:00:24]}
b6 {[%emt 0:02:48]} 40. Rd7+ {[%emt 0:00:15]} Kh6 {[%emt 0:00:03]} 41. Rxa7 {
[%emt 0:30:52]} Rd4 {[%emt 0:30:07]} 42. Rh7+ {[%emt 0:00:46]} Kg5 {[%emt 0:00:
00]} 43. g7 {[%emt 0:00:49]} 1-0

[Event "44th Chess Olympiad Women 2022"]
[Site "Chennai"]
[Date "2022.08.05"]
[Round "7.47"]
[White "Jose de Ribbegren, Kenia"]
[Black "Ntsielo, Bonolo"]
[Result "1-0"]
[WhiteElo "1787"]
[BlackElo "1413"]
[Annotator "NA"]
[PlyCount "62"]
[EventDate "2022.??.??"]
[TimeControl "60"]

1. d4 {[%emt 0:00:04]} Nf6 {[%emt 0:00:07]} 2. Bf4 {[%emt 0:00:11]} g6 {
[%emt 0:00:09]} 3. Nc3 {[%emt 0:00:18]} Bg7 {[%emt 0:00:16]} 4. e4 {[%emt 0:00:
00]} d6 {[%emt 0:00:20]} 5. Qd2 {[%emt 0:01:08]} a6 {[%emt 0:04:11]} 6. f3 {
[%emt 0:01:54]} Nc6 {[%emt 0:01:45]} 7. O-O-O {[%emt 0:01:12]} Nd7 {[%emt 0:00:
00]} 8. Be3 {[%emt 0:01:00]} b5 {[%emt 0:00:59]} 9. a3 {[%emt 0:03:11]} e6 {
[%emt 0:21:25]} 10. h4 {[%emt 0:04:56]} Bb7 {[%emt 0:00:44]} 11. Nh3 {[%emt 0:
00:00]} Ne7 {[%emt 0:14:26]} 12. Bh6 {[%emt 0:04:07]} Bf6 {[%emt 0:04:51]} 13.
g3 {[%emt 0:11:44]} Ng8 {[%emt 0:05:43]} 14. Be3 {[%emt 0:02:20]} Qe7 {[%emt 0:
00:00]} 15. Bg2 {[%emt 0:10:12]} Nb6 {[%emt 0:06:00]} 16. Bf1 {[%emt 0:04:17]}
Nd7 {[%emt 0:05:37]} 17. Na2 {[%emt 0:04:48]} d5 {[%emt 0:06:01]} 18. e5 {
[%emt 0:02:24]} Bg7 {[%emt 0:00:24]} 19. Bg5 {[%emt 0:01:53]} Qf8 {[%emt 0:00:
00]} 20. Qa5 {[%emt 0:07:11]} Nb6 {[%emt 0:03:27]} 21. Bxb5+ {[%emt 0:04:49]}
axb5 {[%emt 0:07:48]} 22. Qxb5+ {[%emt 0:00:04]} Nd7 {[%emt 0:04:29]} 23. Qxb7
{[%emt 0:00:17]} Rb8 {[%emt 0:00:28]} 24. Qxc7 {[%emt 0:00:45]} Bh6 {[%emt 0:
00:00]} 25. Nb4 {[%emt 0:04:26]} Bxg5+ {[%emt 0:00:52]} 26. Nxg5 {[%emt 0:00:
00]} Ne7 {[%emt 0:01:09]} 27. Na6 {[%emt 0:03:49]} Rc8 {[%emt 0:02:42]} 28. Qa5
{[%emt 0:00:32]} Nc6 {[%emt 0:01:16]} 29. Qb5 {[%emt 0:03:52]} Qe7 {[%emt 0:00:
00]} 30. f4 {[%emt 0:01:26]} Qd8 {[%emt 0:01:20]} 31. h5 {[%emt 0:01:03]} Ra8 {
[%emt 0:00:00]} 1-0

[Event "44th Chess Olympiad Women 2022"]
[Site "Chennai"]
[Date "2022.08.05"]
[Round "7.47"]
[White "Leboela, Maboloko"]
[Black "Dubois, Martine"]
[Result "0-1"]
[WhiteElo "1253"]
[BlackElo "1782"]
[Annotator "NA"]
[PlyCount "106"]
[EventDate "2022.??.??"]
[TimeControl "60"]

1. d4 {[%emt 0:00:14]} d5 {[%emt 0:00:08]} 2. c4 {[%emt 0:00:08]} dxc4 {
[%emt 0:00:05]} 3. Qa4+ {[%emt 0:01:11]} Qd7 {[%emt 0:02:25]} 4. Qxc4 {[%emt 0:
00:00]} Qc6 {[%emt 0:00:31]} 5. Qxc6+ {[%emt 0:00:21]} Nxc6 {[%emt 0:00:07]} 6.
Nf3 {[%emt 0:00:10]} Bf5 {[%emt 0:02:39]} 7. a3 {[%emt 0:01:23]} Nf6 {[%emt 0:
00:00]} 8. Bg5 {[%emt 0:01:51]} Ne4 {[%emt 0:10:11]} 9. Bf4 {[%emt 0:00:28]}
O-O-O {[%emt 0:03:25]} 10. e3 {[%emt 0:00:26]} e6 {[%emt 0:04:14]} 11. Bb5 {
[%emt 0:00:26]} Ne7 {[%emt 0:02:01]} 12. O-O {[%emt 0:03:29]} Nd5 {[%emt 0:00:
00]} 13. Ne5 {[%emt 0:02:22]} Nd6 {[%emt 0:02:16]} 14. Ba4 {[%emt 0:06:31]} f6
{[%emt 0:02:15]} 15. Nf3 {[%emt 0:07:25]} g5 {[%emt 0:04:46]} 16. Bxd6 {
[%emt 0:01:17]} Bxd6 {[%emt 0:01:03]} 17. Nbd2 {[%emt 0:00:12]} Bd3 {[%emt 0:
00:00]} 18. Rfc1 {[%emt 0:01:00]} Kb8 {[%emt 0:04:01]} 19. e4 {[%emt 0:00:11]}
Nf4 {[%emt 0:00:38]} 20. Bd1 {[%emt 0:01:28]} Be7 {[%emt 0:05:52]} 21. Rc3 {
[%emt 0:03:26]} g4 {[%emt 0:04:43]} 22. Ne1 {[%emt 0:01:44]} Be2 {[%emt 0:00:
00]} 23. g3 {[%emt 0:07:19]} Nh3+ {[%emt 0:03:13]} 24. Kg2 {[%emt 0:04:47]}
Bxd1 {[%emt 0:00:14]} 25. Rxd1 {[%emt 0:00:16]} Rxd4 {[%emt 0:00:15]} 26. Rd3 {
[%emt 0:00:51]} Rxd3 {[%emt 0:03:44]} 27. Nxd3 {[%emt 0:00:08]} Rd8 {[%emt 0:
00:00]} 28. Nf1 {[%emt 0:01:59]} Ng5 {[%emt 0:01:39]} 29. Ne3 {[%emt 0:03:56]}
Nxe4 {[%emt 0:04:21]} 30. Nf4 {[%emt 0:03:41]} Rxd1 {[%emt 0:01:19]} 31. Nxd1 {
[%emt 0:00:02]} Ng5 {[%emt 0:01:08]} 32. Ne3 {[%emt 0:00:27]} f5 {[%emt 0:00:
00]} 33. h4 {[%emt 0:02:08]} gxh3+ {[%emt 0:00:22]} 34. Nxh3 {[%emt 0:00:04]}
Kc8 {[%emt 0:01:24]} 35. Nf4 {[%emt 0:00:54]} Kd7 {[%emt 0:00:50]} 36. Nc4 {
[%emt 0:00:28]} Bf6 {[%emt 0:01:03]} 37. b4 {[%emt 0:02:40]} b5 {[%emt 0:00:44]
} 38. Ne3 {[%emt 0:05:00]} Kd6 {[%emt 0:01:31]} 39. Nd3 {[%emt 0:00:37]} Bd4 {
[%emt 0:01:57]} 40. Nc2 {[%emt 0:00:20]} Bb6 {[%emt 0:02:12]} 41. f4 {[%emt 0:
00:00]} Ne4 {[%emt 0:33:09]} 42. Ne5 {[%emt 0:00:56]} Nf6 {[%emt 0:02:00]} 43.
Nf7+ {[%emt 0:00:26]} Kd5 {[%emt 0:00:16]} 44. Nd8 {[%emt 0:00:50]} c5 {
[%emt 0:00:51]} 45. Nb7 {[%emt 0:00:24]} c4 {[%emt 0:00:42]} 46. Kf3 {[%emt 0:
00:00]} h5 {[%emt 0:02:35]} 47. Na5 {[%emt 0:01:55]} Bxa5 {[%emt 0:01:35]} 48.
bxa5 {[%emt 0:00:02]} c3 {[%emt 0:01:15]} 49. Ke3 {[%emt 0:00:52]} Kc4 {
[%emt 0:00:13]} 50. a6 {[%emt 0:01:16]} Nd5+ {[%emt 0:02:32]} 51. Ke2 {[%emt 0:
00:00]} Kb3 {[%emt 0:00:41]} 52. Nd4+ {[%emt 0:01:23]} Kb2 {[%emt 0:00:23]} 53.
Kd3 {[%emt 0:00:56]} Nc7 {[%emt 0:03:01]} 0-1

[Event "44th Chess Olympiad Women 2022"]
[Site "Chennai"]
[Date "2022.08.05"]
[Round "7.47"]
[White "Reitumetse Taioe"]
[Black "Lebel-Arias, Julia"]
[Result "0-1"]
[WhiteElo "1180"]
[BlackElo "1660"]
[Annotator "NA RC"]
[PlyCount "88"]
[EventDate "2022.??.??"]
[TimeControl "60"]

1. e4 {[%emt 0:00:05]} g6 {[%emt 0:00:14]} 2. d4 {[%emt 0:00:16]} Bg7 {[%emt 0:
00:00]} 3. Nf3 {[%emt 0:00:27]} d6 {[%emt 0:00:15]} 4. c4 {[%emt 0:00:33]} c6 {
[%emt 0:00:18]} 5. Nc3 {[%emt 0:01:08]} Nh6 {[%emt 0:00:27]} 6. Be2 {[%emt 0:
00:00]} f6 {[%emt 0:00:26]} 7. O-O {[%emt 0:00:45]} Nf7 {[%emt 0:00:17]} 8. b3
{[%emt 0:01:06]} O-O {[%emt 0:00:21]} 9. Bb2 {[%emt 0:00:31]} Nd7 {[%emt 0:00:
00]} 10. Qc2 {[%emt 0:04:44]} a5 {[%emt 0:00:56]} 11. a3 {[%emt 0:00:47]} e5 {
[%emt 0:00:23]} 12. d5 {[%emt 0:01:14]} c5 {[%emt 0:00:21]} 13. h3 {[%emt 0:00:
00]} Nb6 {[%emt 0:01:21]} 14. Nh2 {[%emt 0:01:01]} f5 {[%emt 0:00:17]} 15. f4 {
[%emt 0:02:03]} exf4 {[%emt 0:00:58]} 16. Rxf4 {[%emt 0:00:52]} Be5 {[%emt 0:
00:00]} 17. Rf3 {[%emt 0:00:43]} Ng5 {[%emt 0:00:32]} 18. Rff1 {[%emt 0:02:19]}
fxe4 {[%emt 0:05:45]} 19. Rxf8+ {[%emt 0:00:32]} Qxf8 {[%emt 0:00:34]} 20. Rf1
{[%emt 0:00:49]} Qg7 {[%emt 0:01:12]} 21. Ng4 {[%emt 0:04:33]} Bxg4 {[%emt 0:
00:00]} 22. Bxg4 {[%emt 0:00:16]} Rf8 {[%emt 0:00:19]} 23. h4 {[%emt 0:03:11]}
Rxf1+ {[%emt 0:00:20]} 24. Kxf1 {[%emt 0:00:05]} Qf6+ {[%emt 0:00:35]} 25. Qf2
{[%emt 0:07:12]} Qxf2+ {[%emt 0:04:13]} 26. Kxf2 {[%emt 0:00:05]} Bd4+ {
[%emt 0:00:22]} 27. Ke2 {[%emt 0:00:22]} Nf7 {[%emt 0:00:17]} 28. Be6 {[%emt 0:
00:00]} Kf8 {[%emt 0:00:08]} 29. Nd1 {[%emt 0:00:46]} Ne5 {[%emt 0:00:30]} 30.
Bc1 {[%emt 0:03:01]} a4 {[%emt 0:01:00]} 31. bxa4 {[%emt 0:04:12]} Nexc4 {
[%emt 0:00:31]} 32. Nf2 {[%emt 0:00:47]} Bxf2 {[%emt 0:01:48]} 33. Kxf2 {
[%emt 0:01:37]} Nxa4 {[%emt 0:02:16]} 34. Bc8 {[%emt 0:00:00]} b6 {[%emt 0:00:
00]} 35. Bh6+ {[%emt 0:02:19]} Ke8 {[%emt 0:00:15]} 36. Ba6 {[%emt 0:01:38]}
Nab2 {[%emt 0:01:36]} 37. Bg7 {[%emt 0:01:03]} Nd3+ {[%emt 0:00:33]} 38. Ke2 {
[%emt 0:00:37]} Nf4+ {[%emt 0:02:25]} 39. Kf2 {[%emt 0:00:30]} e3+ {[%emt 0:00:
00]} 40. Kf3 {[%emt 0:03:52]} e2 {[%emt 0:01:01]} 41. Bc3 {[%emt 0:30:19]} Nxd5
{[%emt 0:31:21]} 42. Kxe2 {[%emt 0:04:09]} Nxc3+ {[%emt 0:01:41]} 43. Kd3 {
[%emt 0:00:12]} Nxa3 {[%emt 0:01:12]} 44. Kxc3 {[%emt 0:00:12]} b5 {[%emt 0:00:
00]} 0-1

[Event "44th Chess Olympiad Women 2022"]
[Site "Chennai"]
[Date "2022.08.05"]
[Round "7.48"]
[White "Al Maamari, Wafia Darwish"]
[Black "Sitoe, Cheila Andre"]
[Result "1-0"]
[WhiteElo "1841"]
[BlackElo "1574"]
[Annotator "NA"]
[PlyCount "145"]
[EventDate "2022.??.??"]
[TimeControl "60"]

1. e4 {[%emt 0:00:05]} c5 {[%emt 0:00:11]} 2. Nf3 {[%emt 0:00:04]} d6 {[%emt 0:
00:00]} 3. d4 {[%emt 0:00:06]} cxd4 {[%emt 0:00:44]} 4. Nxd4 {[%emt 0:00:04]}
Nf6 {[%emt 0:00:13]} 5. Nc3 {[%emt 0:00:03]} a6 {[%emt 0:00:11]} 6. f4 {
[%emt 0:00:45]} e6 {[%emt 0:00:15]} 7. Qf3 {[%emt 0:08:59]} Qc7 {[%emt 0:03:58]
} 8. g4 {[%emt 0:05:50]} e5 {[%emt 0:02:59]} 9. Nf5 {[%emt 0:01:23]} g6 {
[%emt 0:01:19]} 10. Ne3 {[%emt 0:06:06]} exf4 {[%emt 0:02:19]} 11. Ned5 {
[%emt 0:03:26]} Nxd5 {[%emt 0:01:07]} 12. Nxd5 {[%emt 0:00:32]} Qd8 {[%emt 0:
00:00]} 13. Bxf4 {[%emt 0:23:32]} Bg7 {[%emt 0:00:32]} 14. O-O-O {[%emt 0:00:
00]} O-O {[%emt 0:01:01]} 15. h4 {[%emt 0:03:18]} Nc6 {[%emt 0:01:33]} 16. g5 {
[%emt 0:08:11]} Be6 {[%emt 0:04:24]} 17. Bxd6 {[%emt 0:05:05]} Qa5 {[%emt 0:00:
00]} 18. Bxf8 {[%emt 0:02:38]} Rxf8 {[%emt 0:00:06]} 19. a3 {[%emt 0:03:44]}
Ne5 {[%emt 0:01:25]} 20. Qc3 {[%emt 0:04:26]} Qa4 {[%emt 0:01:43]} 21. Qb4 {
[%emt 0:03:30]} Qxb4 {[%emt 0:05:21]} 22. Nxb4 {[%emt 0:00:42]} Bg4 {[%emt 0:
00:00]} 23. Re1 {[%emt 0:02:12]} Nf3 {[%emt 0:01:00]} 24. Re3 {[%emt 0:00:18]}
Nd4 {[%emt 0:03:17]} 25. c3 {[%emt 0:04:22]} Nb3+ {[%emt 0:00:51]} 26. Kc2 {
[%emt 0:00:04]} Na5 {[%emt 0:01:58]} 27. b3 {[%emt 0:02:12]} Rd8 {[%emt 0:00:
00]} 28. Bh3 {[%emt 0:00:31]} Bh5 {[%emt 0:00:21]} 29. Rf1 {[%emt 0:01:41]} Be5
{[%emt 0:00:24]} 30. a4 {[%emt 0:04:37]} b5 {[%emt 0:00:38]} 31. axb5 {[%emt 0:
00:00]} axb5 {[%emt 0:00:05]} 32. Nd5 {[%emt 0:00:09]} Nc6 {[%emt 0:01:41]} 33.
Ra1 {[%emt 0:01:28]} b4 {[%emt 0:01:03]} 34. Rd3 {[%emt 0:01:42]} Rb8 {[%emt 0:
00:00]} 35. Bd7 {[%emt 0:01:01]} Nd8 {[%emt 0:00:43]} 36. Nxb4 {[%emt 0:00:30]}
Rxb4 {[%emt 0:00:48]} 37. Ra5 {[%emt 0:00:41]} Rxe4 {[%emt 0:00:25]} 38. Ra8 {
[%emt 0:01:00]} Bc7 {[%emt 0:01:35]} 39. Rc8 {[%emt 0:00:06]} Bb6 {[%emt 0:00:
00]} 40. Rd6 {[%emt 0:00:26]} Re2+ {[%emt 0:00:39]} 41. Kb1 {[%emt 0:30:23]}
Bf2 {[%emt 0:36:10]} 42. Rxd8+ {[%emt 0:00:07]} Kg7 {[%emt 0:00:14]} 43. Re8 {
[%emt 0:01:30]} Bxh4 {[%emt 0:00:26]} 44. Rxe2 {[%emt 0:00:24]} Bxe2 {[%emt 0:
00:00]} 45. Rd5 {[%emt 0:02:14]} Bf3 {[%emt 0:00:14]} 46. Re5 {[%emt 0:00:21]}
h6 {[%emt 0:01:26]} 47. gxh6+ {[%emt 0:00:00]} Kxh6 {[%emt 0:00:00]} 48. Re3 {
[%emt 0:00:00]} Bb7 {[%emt 0:00:00]} 49. c4 {[%emt 0:00:00]} f5 {[%emt 0:00:00]
} 50. c5 {[%emt 0:00:00]} f4 {[%emt 0:00:00]} 51. Rh3 {[%emt 0:00:00]} Be4+ {
[%emt 0:00:00]} 52. Kc1 {[%emt 0:00:00]} Kg5 {[%emt 0:00:00]} 53. c6 {[%emt 0:
00:00]} Bf2 {[%emt 0:00:00]} 54. c7 {[%emt 0:00:00]} Bb7 {[%emt 0:00:00]} 55.
c8=Q {[%emt 0:00:00]} Bxc8 {[%emt 0:00:00]} 56. Bxc8 {[%emt 0:00:00]} Be3+ {
[%emt 0:00:00]} 57. Kd1 {[%emt 0:00:00]} Kf6 {[%emt 0:00:00]} 58. Ke2 {[%emt 0:
00:00]} Ke5 {[%emt 0:00:00]} 59. Rxe3+ {[%emt 0:00:00]} fxe3 {[%emt 0:00:00]}
60. Kxe3 {[%emt 0:00:00]} g5 {[%emt 0:00:00]} 61. Kf3 {[%emt 0:00:00]} Kd4 {
[%emt 0:00:00]} 62. Kg4 {[%emt 0:00:00]} Kc3 {[%emt 0:00:00]} 63. Be6 {[%emt 0:
00:00]} Kb4 {[%emt 0:00:00]} 64. Kxg5 {[%emt 0:00:00]} Kb5 {[%emt 0:00:00]} 65.
Kf4 {[%emt 0:00:00]} Kb6 {[%emt 0:00:00]} 66. Ke4 {[%emt 0:00:00]} Ka7 {
[%emt 0:00:00]} 67. Kd5 {[%emt 0:00:00]} Kb8 {[%emt 0:00:00]} 68. Kc6 {[%emt 0:
00:00]} Ka7 {[%emt 0:00:00]} 69. b4 {[%emt 0:00:00]} Kb8 {[%emt 0:00:00]} 70.
b5 {[%emt 0:00:00]} Ka7 {[%emt 0:00:00]} 71. b6+ {[%emt 0:00:00]} Kb8 {[%emt 0:
00:00]} 72. b7 {[%emt 0:00:00]} Ka7 {[%emt 0:00:00]} 73. Kc7 {[%emt 0:00:00]}
1-0

[Event "44th Chess Olympiad Women 2022"]
[Site "Chennai"]
[Date "2022.08.05"]
[Round "7.48"]
[White "Andre, Chineva Rufino"]
[Black "Almaini, Aishah Sarhan"]
[Result "0-1"]
[WhiteElo "1171"]
[BlackElo "1615"]
[Annotator "NA"]
[PlyCount "116"]
[EventDate "2022.??.??"]
[TimeControl "60"]

1. e4 {[%emt 0:00:07]} g6 {[%emt 0:00:11]} 2. Nf3 {[%emt 0:01:41]} Bg7 {
[%emt 0:00:09]} 3. Bc4 {[%emt 0:01:28]} d6 {[%emt 0:00:30]} 4. d3 {[%emt 0:00:
00]} a6 {[%emt 0:01:58]} 5. c3 {[%emt 0:01:20]} e6 {[%emt 0:00:33]} 6. Be3 {
[%emt 0:01:37]} b5 {[%emt 0:02:14]} 7. Bb3 {[%emt 0:02:18]} Bb7 {[%emt 0:02:40]
} 8. Nbd2 {[%emt 0:02:16]} Ne7 {[%emt 0:04:49]} 9. O-O {[%emt 0:03:04]} O-O {
[%emt 0:02:02]} 10. Re1 {[%emt 0:09:44]} Nd7 {[%emt 0:01:18]} 11. d4 {[%emt 0:
00:00]} c5 {[%emt 0:06:27]} 12. Bc2 {[%emt 0:06:48]} Qc7 {[%emt 0:12:32]} 13.
Rc1 {[%emt 0:06:44]} h6 {[%emt 0:07:43]} 14. Nf1 {[%emt 0:04:23]} f5 {[%emt 0:
00:00]} 15. exf5 {[%emt 0:07:02]} Nxf5 {[%emt 0:03:56]} 16. dxc5 {[%emt 0:00:
00]} dxc5 {[%emt 0:02:38]} 17. N1d2 {[%emt 0:06:57]} Rad8 {[%emt 0:08:29]} 18.
Qe2 {[%emt 0:01:54]} Nf6 {[%emt 0:04:18]} 19. Bxf5 {[%emt 0:05:42]} exf5 {
[%emt 0:00:41]} 20. Nb3 {[%emt 0:02:36]} Ng4 {[%emt 0:10:37]} 21. h3 {[%emt 0:
00:00]} Bxf3 {[%emt 0:06:31]} 22. Qxf3 {[%emt 0:01:07]} Ne5 {[%emt 0:00:30]}
23. Qg3 {[%emt 0:02:34]} c4 {[%emt 0:01:08]} 24. Nd4 {[%emt 0:01:09]} Qf7 {
[%emt 0:01:11]} 25. Rcd1 {[%emt 0:00:37]} f4 {[%emt 0:02:02]} 26. Bxf4 {
[%emt 0:00:16]} Qxf4 {[%emt 0:00:09]} 27. Qxf4 {[%emt 0:00:11]} Rxf4 {[%emt 0:
00:00]} 28. Ne6 {[%emt 0:00:12]} Rxd1 {[%emt 0:00:05]} 29. Rxd1 {[%emt 0:00:14]
} Rf6 {[%emt 0:01:30]} 30. Nc7 {[%emt 0:01:07]} Nd3 {[%emt 0:00:14]} 31. Rd2 {
[%emt 0:00:42]} h5 {[%emt 0:01:25]} 32. Re2 {[%emt 0:00:58]} Kf7 {[%emt 0:00:
00]} 33. g3 {[%emt 0:01:45]} Rc6 {[%emt 0:01:04]} 34. Nd5 {[%emt 0:00:31]} Re6
{[%emt 0:01:03]} 35. Rd2 {[%emt 0:00:43]} Re1+ {[%emt 0:01:54]} 36. Kg2 {
[%emt 0:00:34]} Rb1 {[%emt 0:01:19]} 37. b3 {[%emt 0:01:34]} Rc1 {[%emt 0:00:
00]} 38. bxc4 {[%emt 0:01:44]} bxc4 {[%emt 0:00:06]} 39. Nb6 {[%emt 0:00:54]}
Ne1+ {[%emt 0:00:20]} 40. Kf1 {[%emt 0:00:58]} Nf3+ {[%emt 0:00:08]} 41. Ke2 {
[%emt 0:31:21]} Nxd2 {[%emt 0:30:06]} 42. Kxd2 {[%emt 0:00:17]} Rxc3 {[%emt 0:
00:00]} 43. h4 {[%emt 0:00:32]} Ra3 {[%emt 0:00:06]} 44. Nxc4 {[%emt 0:00:19]}
Rxa2+ {[%emt 0:00:05]} 45. Ke3 {[%emt 0:00:36]} a5 {[%emt 0:00:08]} 46. Nd6+ {
[%emt 0:00:23]} Ke6 {[%emt 0:00:09]} 47. Ne4 {[%emt 0:00:23]} a4 {[%emt 0:00:
00]} 48. Nc5+ {[%emt 0:00:11]} Kd5 {[%emt 0:00:16]} 49. Nd3 {[%emt 0:00:13]}
Ra3 {[%emt 0:00:37]} 50. Kd2 {[%emt 0:00:18]} Rxd3+ {[%emt 0:00:14]} 51. Kxd3 {
[%emt 0:00:12]} a3 {[%emt 0:00:03]} 52. Kc2 {[%emt 0:00:07]} a2 {[%emt 0:00:03]
} 53. Kd3 {[%emt 0:00:08]} a1=Q {[%emt 0:00:06]} 54. f4 {[%emt 0:00:16]} Bd4 {
[%emt 0:00:06]} 55. Ke2 {[%emt 0:00:20]} Ke4 {[%emt 0:00:15]} 56. f5 {[%emt 0:
00:00]} Qb2+ {[%emt 0:00:04]} 57. Kd1 {[%emt 0:00:15]} Kd3 {[%emt 0:00:05]} 58.
fxg6 {[%emt 0:00:11]} Qd2# {[%emt 0:00:05]} 0-1